[Event "14. Deizisauer Herbstopen 2019"]
[Site "Deizisau"]
[Date "2019.10.27"]
[Round "5.2"]
[White "Gustain, Marc"]
[Black "Gheng, Josef"]
[Result "0-1"]
[ECO "C24"]
[WhiteElo "2179"]
[BlackElo "2190"]
[Annotator "NA"]
[PlyCount "106"]
[EventDate "2019.10.25"]
[EventType "swiss"]
[EventCountry "GER"]
[SourceTitle "playchess.com"]
[Source "ChessBase"]
[SourceQuality "1"]
[TimeControl "5400+30"]

1. e4 {[%emt 0:00:00]} e5 {[%emt 0:00:00]} 2. Bc4 {[%emt 0:00:00]} Nf6 {[%emt 0:00:17]} 3. d4 {[%emt 0:00:00]} exd4 {[%emt 0:00:45]} 4. Nf3 {[%emt 0:00:00]} Bc5 {[%emt 0:04:08]} 5. e5 {[%emt 0:02:32]} d5 {[%emt 0:02:07]} 6. exf6 {[%emt 0:01:29]} dxc4 {[%emt 0:00:08]} 7. fxg7 {[%emt 0:01:40]} Rg8 {[%emt 0:00:06]} 8. Qe2+ {[%emt 0:06:49]} Qe7 {[%emt 0:01:17]} 9. Qxe7+ {[%emt 0:00:21]} Kxe7 {[%emt 0:00:07]} 10. Bh6 {[%emt 0:00:21]} a5 {[%emt 0:00:31]} 11. Nbd2 {[%emt 0:00:39]} Ra6 {[%emt 0:00:38]} 12. Bf4 {[%emt 0:03:11]} Re6+ {[%emt 0:04:45]} 13. Kf1 {[%emt 0:00:56]} c3 {[%emt 0:00:35]} 14. bxc3 {[%emt 0:00:18]} dxc3 {[%emt 0:00:07]} 15. Nb3 {[%emt 0:03:48]} Bb6 {[%emt 0:00:34]} 16. Nbd4 {[%emt 0:04:51]} Re4 {[%emt 0:00:35]} 17. Re1 {[%emt 0:05:51]} Rxe1+ {[%emt 0:00:52]} 18. Kxe1 {[%emt 0:00:04]} Rxg7 {[%emt 0:00:21]} 19. Nb5 {[%emt 0:02:21]} Na6 {[%emt 0:00:48]} 20. Nxc3 {[%emt 0:05:26]} Be6 {[%emt 0:00:47]} 21. a3 {[%emt 0:09:51]} f6 {[%emt 0:06:22]} 22. g3 {[%emt 0:03:03]} Bc5 {[%emt 0:00:57]} 23. Bc1 {[%emt 0:04:53]} Rg4 {[%emt 0:00:46]} 24. Bb2 {[%emt 0:02:31]} Kf7 {[%emt 0:03:23]} 25. h3 {[%emt 0:00:58]} Rg8 {[%emt 0:00:30]} 26. Ne4 {[%emt 0:01:59]} Bd5 {[%emt 0:00:21]} 27. Ned2 {[%emt 0:05:03]} Rd8 {[%emt 0:00:42]} 28. Rg1 {[%emt 0:03:00]} b5 {[%emt 0:00:10]} 29. g4 {[%emt 0:01:33]} b4 {[%emt 0:03:19]} 30. a4 {[%emt 0:00:25]} b3 {[%emt 0:00:26]} 31. c3 {[%emt 0:05:02]} Bc6 {[%emt 0:00:59]} 32. g5 {[%emt 0:01:23]} Be7 {[%emt 0:01:15]} 33. Nd4 {[%emt 0:01:13]} Bxa4 {[%emt 0:00:16]} 34. gxf6 {[%emt 0:01:28]} Bxf6 {[%emt 0:00:15]} 35. N4xb3 {[%emt 0:01:12]} Rb8 {[%emt 0:00:17]} 36. Nxa5 {[%emt 0:04:33]} Rxb2 {[%emt 0:00:11]} 37. Rg4 {[%emt 0:00:46]} Bd7 {[%emt 0:01:03]} 38. Rf4 {[%emt 0:00:18]} Nc5 {[%emt 0:00:27]} 39. Ke2 {[%emt 0:00:59]} Kg6 {[%emt 0:00:40]} 40. Nac4 {[%emt 0:01:02]} Rc2 {[%emt 0:00:09]} 41. Ne3 {[%emt 0:00:42]} Ra2 {[%emt 0:00:48]} 42. Nd5 {[%emt 0:02:34]} Rxd2+ {[%emt 0:00:18]} 43. Kxd2 {[%emt 0:00:31]} Bg5 {[%emt 0:00:05]} 44. Ke2 {[%emt 0:00:37]} Bxf4 {[%emt 0:00:41]} 45. Nxf4+ {[%emt 0:00:02]} Kf5 {[%emt 0:00:20]} 46. Ke3 {[%emt 0:00:53]} Ke5 {[%emt 0:00:35]} 47. h4 {[%emt 0:00:20]} Bg4 {[%emt 0:00:17]} 48. f3 {[%emt 0:00:29]} Bf5 {[%emt 0:00:16]} 49. Ne2 {[%emt 0:00:39]} Ne6 {[%emt 0:00:05]} 50. c4 {[%emt 0:00:24]} c5 {[%emt 0:00:15]} 51. f4+ {[%emt 0:00:28]} Kf6 {[%emt 0:00:17]} 52. Nc3 {[%emt 0:00:21]} Bc2 {[%emt 0:00:45]} 53. Nd5+ {[%emt 0:00:40]} Kf5 {[%emt 0:00:16]} 0-1

[Event "14. Deizisauer Herbstopen 2019"]
[Site "Deizisau"]
[Date "2019.10.27"]
[Round "5.3"]
[White "Frolik, Erhard"]
[Black "Valkova, Anzhelika"]
[Result "1-0"]
[ECO "C06"]
[WhiteElo "2317"]
[BlackElo "1947"]
[Annotator "NA RC"]
[PlyCount "83"]
[EventDate "2019.10.25"]
[EventType "swiss"]
[EventCountry "GER"]
[SourceTitle "playchess.com"]
[Source "ChessBase"]
[SourceQuality "1"]
[TimeControl "5400+30"]

1. e4 {[%emt 0:00:41]} e6 {[%emt 0:00:00]} 2. d4 {[%emt 0:00:27]} d5 {[%emt 0:00:00]} 3. Nd2 {[%emt 0:00:25]} Nf6 {[%emt 0:00:00]} 4. e5 {[%emt 0:00:15]} Nfd7 {[%emt 0:00:00]} 5. Bd3 {[%emt 0:00:07]} c5 {[%emt 0:00:02]} 6. c3 {[%emt 0:00:04]} Nc6 {[%emt 0:00:04]} 7. Ne2 {[%emt 0:00:11]} cxd4 {[%emt 0:00:04]} 8. cxd4 {[%emt 0:00:09]} f6 {[%emt 0:00:04]} 9. exf6 {[%emt 0:00:09]} Qxf6 {[%emt 0:00:03]} 10. Nf3 {[%emt 0:01:08]} h6 {[%emt 0:00:07]} 11. O-O {[%emt 0:10:42]} Bd6 {[%emt 0:00:03]} 12. Bd2 {[%emt 0:00:50]} O-O {[%emt 0:00:09]} 13. Bc3 {[%emt 0:00:28]} Rd8 {[%emt 0:00:30]} 14. Ng3 {[%emt 0:00:38]} Nf8 {[%emt 0:00:12]} 15. Re1 {[%emt 0:04:35]} Ng6 {[%emt 0:11:45]} 16. Nh5 {[%emt 0:00:54]} Qf7 {[%emt 0:00:05]} 17. a3 {[%emt 0:05:52]} Rf8 {[%emt 0:05:44]} 18. Qe2 {[%emt 0:01:59]} Nf4 {[%emt 0:01:02]} 19. Nxf4 {[%emt 0:00:06]} Qxf4 {[%emt 0:00:03]} 20. Bc2 {[%emt 0:02:25]} g5 {[%emt 0:02:22]} 21. Qd3 {[%emt 0:01:57]} Qf7 {[%emt 0:00:11]} 22. Re2 {[%emt 0:01:48]} Bd7 {[%emt 0:02:08]} 23. Rae1 {[%emt 0:06:13]} Qg7 {[%emt 0:00:18]} 24. b4 {[%emt 0:08:43]} a6 {[%emt 0:00:42]} 25. h3 {[%emt 0:02:32]} Rf4 {[%emt 0:01:47]} 26. Bd2 {[%emt 0:08:37]} Nxd4 {[%emt 0:07:17]} 27. Nxd4 {[%emt 0:01:23]} Rxd4 {[%emt 0:00:04]} 28. Qb3 {[%emt 0:01:16]} Rc4 {[%emt 0:00:47]} 29. Bd3 {[%emt 0:02:36]} Rc7 {[%emt 0:00:20]} 30. g3 {[%emt 0:07:42]} Rac8 {[%emt 0:03:25]} 31. Rxe6 {[%emt 0:01:50]} Bxe6 {[%emt 0:02:10]} 32. Rxe6 {[%emt 0:00:05]} Qa1+ {[%emt 0:01:31]} 33. Kg2 {[%emt 0:01:16]} Bf8 {[%emt 0:00:42]} 34. Qxd5 {[%emt 0:00:21]} Kh8 {[%emt 0:00:21]} 35. Be3 {[%emt 0:00:50]} Bg7 {[%emt 0:00:23]} 36. Qe4 {[%emt 0:02:31]} Kg8 {[%emt 0:01:02]} 37. Re8+ {[%emt 0:04:57]} Rxe8 {[%emt 0:00:06]} 38. Qxe8+ {[%emt 0:00:04]} Bf8 {[%emt 0:00:03]} 39. Qe6+ {[%emt 0:02:23]} Kh8 {[%emt 0:10:24]} 40. Qd5 {[%emt 0:00:34]} Rg7 {[%emt 0:00:06]} 41. Bd4 {[%emt 0:00:10]} Qxa3 {[%emt 0:00:16]} 42. Qf5 {[%emt 0:00:43]} 1-0

[Event "14. Deizisauer Herbstopen 2019"]
[Site "Deizisau"]
[Date "2019.10.27"]
[Round "5.4"]
[White "Trettin, Ulrich"]
[Black "Hoffmann, Achim Gunter"]
[Result "1/2-1/2"]
[ECO "A77"]
[WhiteElo "2031"]
[BlackElo "2125"]
[Annotator "NA"]
[PlyCount "141"]
[EventDate "2019.10.25"]
[EventType "swiss"]
[EventCountry "GER"]
[SourceTitle "playchess.com"]
[Source "ChessBase"]
[SourceQuality "1"]
[TimeControl "5400+30"]

1. d4 {[%emt 0:00:00]} e6 {[%emt 0:00:00]} 2. c4 c5 {[%emt 0:00:03]} 3. d5 {[%emt 0:00:08]} exd5 {[%emt 0:00:11]} 4. cxd5 {[%emt 0:00:04]} d6 {[%emt 0:00:32]} 5. Nc3 {[%emt 0:00:36]} g6 {[%emt 0:00:27]} 6. Nf3 {[%emt 0:01:13]} Bg7 {[%emt 0:00:05]} 7. Nd2 {[%emt 0:02:08]} Nf6 {[%emt 0:04:15]} 8. e4 {[%emt 0:00:52]} O-O {[%emt 0:00:14]} 9. Be2 {[%emt 0:00:14]} Re8 {[%emt 0:01:06]} 10. O-O {[%emt 0:00:08]} b6 {[%emt 0:00:50]} 11. f3 {[%emt 0:03:44]} Ba6 {[%emt 0:04:19]} 12. Bxa6 {[%emt 0:01:15]} Nxa6 {[%emt 0:00:04]} 13. Nc4 {[%emt 0:00:12]} Qd7 {[%emt 0:04:16]} 14. Bf4 {[%emt 0:05:33]} Nh5 {[%emt 0:01:35]} 15. Bg5 {[%emt 0:03:36]} f5 {[%emt 0:15:19]} 16. exf5 {[%emt 0:07:36]} b5 {[%emt 0:07:10]} 17. g4 {[%emt 0:17:26]} bxc4 {[%emt 0:02:35]} 18. gxh5 {[%emt 0:00:08]} Qxf5 {[%emt 0:00:36]} 19. Qd2 {[%emt 0:00:30]} Bd4+ {[%emt 0:01:48]} 20. Kh1 {[%emt 0:00:47]} Nb4 {[%emt 0:00:31]} 21. Ne4 {[%emt 0:00:42]} Rxe4 {[%emt 0:03:29]} 22. fxe4 {[%emt 0:00:05]} Qxe4+ {[%emt 0:00:15]} 23. Qg2 {[%emt 0:00:06]} Qxg2+ {[%emt 0:01:37]} 24. Kxg2 {[%emt 0:00:06]} Bxb2 {[%emt 0:00:51]} 25. Rae1 {[%emt 0:00:33]} Be5 {[%emt 0:00:30]} 26. hxg6 {[%emt 0:00:45]} Nxd5 {[%emt 0:05:58]} 27. gxh7+ {[%emt 0:00:55]} Kxh7 {[%emt 0:00:04]} 28. Re4 {[%emt 0:06:55]} Kg6 {[%emt 0:06:43]} 29. Bc1 {[%emt 0:03:52]} Nf6 {[%emt 0:05:51]} 30. Rxc4 {[%emt 0:00:36]} Bd4 {[%emt 0:00:50]} 31. Ra4 {[%emt 0:05:43]} d5 {[%emt 0:04:55]} 32. Ra6 {[%emt 0:03:23]} c4 {[%emt 0:01:17]} 33. Rd6 {[%emt 0:02:40]} Re8 {[%emt 0:00:57]} 34. Kf3 {[%emt 0:03:11]} Be5 {[%emt 0:10:39]} 35. Ra6 {[%emt 0:00:13]} Re7 {[%emt 0:00:09]} 36. Rc6 {[%emt 0:02:27]} c3 {[%emt 0:03:08]} 37. Re1 {[%emt 0:03:02]} Kf5 {[%emt 0:00:40]} 38. Rxc3 {[%emt 0:02:47]} Ne4 {[%emt 0:04:29]} 39. Rd3 {[%emt 0:02:14]} Rh7 {[%emt 0:00:48]} 40. Rxd5 {[%emt 0:06:20]} Rh3+ {[%emt 0:00:25]} 41. Kg2 {[%emt 0:00:13]} Rxh2+ {[%emt 0:00:05]} 42. Kg1 {[%emt 0:01:21]} Rxa2 {[%emt 0:00:14]} 43. Bh6 {[%emt 0:08:18]} Ra6 {[%emt 0:03:57]} 44. Rf1+ {[%emt 0:02:11]} Ke6 {[%emt 0:00:06]} 45. Rxe5+ {[%emt 0:01:15]} Kxe5 {[%emt 0:00:04]} 46. Be3 {[%emt 0:00:20]} Rg6+ {[%emt 0:00:23]} 47. Kh2 {[%emt 0:00:10]} a5 {[%emt 0:01:13]} 48. Ra1 {[%emt 0:00:03]} Ra6 {[%emt 0:00:09]} 49. Ra4 {[%emt 0:00:22]} Kf5 {[%emt 0:00:21]} 50. Kg2 {[%emt 0:00:16]} Nc3 {[%emt 0:01:13]} 51. Rc4 {[%emt 0:00:17]} Nd5 {[%emt 0:00:54]} 52. Bc1 {[%emt 0:01:03]} a4 {[%emt 0:00:15]} 53. Kf2 {[%emt 0:00:34]} a3 {[%emt 0:01:08]} 54. Bxa3 {[%emt 0:00:03]} Rxa3 {[%emt 0:00:07]} 55. Rc2 {[%emt 0:00:09]} Nf6 {[%emt 0:00:31]} 56. Rc5+ {[%emt 0:00:11]} Kf4 {[%emt 0:00:04]} 57. Rc2 {[%emt 0:00:18]} Re3 {[%emt 0:00:23]} 58. Kg2 {[%emt 0:00:34]} Ne4 {[%emt 0:00:13]} 59. Kh2 {[%emt 0:00:26]} Rg3 {[%emt 0:01:37]} 60. Rg2 {[%emt 0:00:56]} Rb3 {[%emt 0:00:48]} 61. Ra2 {[%emt 0:00:10]} Kf3 {[%emt 0:00:49]} 62. Kg1 {[%emt 0:00:50]} Rd3 {[%emt 0:02:38]} 63. Rb2 {[%emt 0:00:52]} Rd1+ {[%emt 0:00:55]} 64. Kh2 {[%emt 0:00:04]} Nd2 {[%emt 0:00:02]} 65. Ra2 {[%emt 0:00:26]} Nf1+ {[%emt 0:00:36]} 66. Kh3 {[%emt 0:00:11]} Ne3 {[%emt 0:00:05]} 67. Kh4 {[%emt 0:00:50]} Rd5 {[%emt 0:00:02]} 68. Ra3 {[%emt 0:00:39]} Rb5 {[%emt 0:01:00]} 69. Rc3 {[%emt 0:00:52]} Kf4 {[%emt 0:01:52]} 70. Ra3 {[%emt 0:00:29]} Nf5+ {[%emt 0:02:42]} 71. Kh5 {[%emt 0:01:31]} 1/2-1/2

[Event "14. Deizisauer Herbstopen 2019"]
[Site "Deizisau"]
[Date "2019.10.27"]
[Round "5.5"]
[White "Weissenberger, Mario"]
[Black "Kraft, Julian"]
[Result "1-0"]
[ECO "B00"]
[WhiteElo "2026"]
[BlackElo "2062"]
[Annotator "NA"]
[PlyCount "147"]
[EventDate "2019.10.25"]
[EventType "swiss"]
[EventCountry "GER"]
[SourceTitle "playchess.com"]
[Source "ChessBase"]
[SourceQuality "1"]
[TimeControl "5400+30"]

1. e4 {[%emt 0:00:00]} b6 {[%emt 0:00:24]} 2. d4 {[%emt 0:00:00]} Bb7 {[%emt 0:00:06]} 3. Bd3 {[%emt 0:00:52]} e6 {[%emt 0:00:05]} 4. Nf3 {[%emt 0:00:05]} c5 {[%emt 0:00:03]} 5. c3 {[%emt 0:00:20]} Nf6 {[%emt 0:00:02]} 6. Qe2 {[%emt 0:00:16]} d5 {[%emt 0:00:02]} 7. e5 {[%emt 0:02:00]} Nfd7 {[%emt 0:00:01]} 8. Bg5 {[%emt 0:02:44]} Qc8 {[%emt 0:00:06]} 9. O-O {[%emt 0:00:27]} Ba6 {[%emt 0:00:25]} 10. Nbd2 {[%emt 0:01:38]} Bxd3 {[%emt 0:00:41]} 11. Qxd3 {[%emt 0:00:06]} Qa6 {[%emt 0:00:03]} 12. Qe3 {[%emt 0:01:37]} Nc6 {[%emt 0:00:31]} 13. a3 {[%emt 0:00:13]} h6 {[%emt 0:06:57]} 14. Bh4 {[%emt 0:00:22]} g5 {[%emt 0:00:24]} 15. Bg3 {[%emt 0:00:14]} Ne7 {[%emt 0:00:11]} 16. Rfd1 {[%emt 0:08:20]} Nf5 {[%emt 0:01:55]} 17. Qe1 {[%emt 0:00:07]} Be7 {[%emt 0:00:58]} 18. h3 {[%emt 0:03:35]} h5 {[%emt 0:02:57]} 19. Nf1 {[%emt 0:00:32]} Rc8 {[%emt 0:19:12]} 20. Ne3 {[%emt 0:02:49]} Nf8 {[%emt 0:11:10]} 21. Nxf5 {[%emt 0:08:05]} exf5 {[%emt 0:04:22]} 22. dxc5 {[%emt 0:00:22]} Ne6 {[%emt 0:07:48]} 23. Rxd5 {[%emt 0:04:59]} f4 {[%emt 0:05:03]} 24. Bh2 {[%emt 0:00:17]} g4 {[%emt 0:01:34]} 25. Nd2 {[%emt 0:14:10]} gxh3 {[%emt 0:00:28]} 26. Ne4 {[%emt 0:01:59]} hxg2 {[%emt 0:15:18]} 27. Nd6+ {[%emt 0:08:31]} Bxd6 {[%emt 0:00:53]} 28. exd6 {[%emt 0:00:40]} Qf1+ {[%emt 0:11:22]} 29. Qxf1 {[%emt 0:00:08]} gxf1=Q+ {[%emt 0:00:03]} 30. Kxf1 {[%emt 0:00:20]} Rxc5 {[%emt 0:00:02]} 31. Rxc5 {[%emt 0:03:38]} bxc5 {[%emt 0:00:34]} 32. b4 {[%emt 0:00:08]} Kd7 {[%emt 0:08:17]} 33. Rd1 {[%emt 0:01:27]} Rc8 {[%emt 0:03:10]} 34. b5 {[%emt 0:00:25]} c4 {[%emt 0:00:36]} 35. f3 {[%emt 0:01:07]} Rc5 {[%emt 0:01:05]} 36. a4 {[%emt 0:00:08]} h4 {[%emt 0:00:36]} 37. Bg1 {[%emt 0:01:06]} Rh5 {[%emt 0:00:20]} 38. Bxa7 {[%emt 0:00:14]} h3 {[%emt 0:00:01]} 39. Kg1 {[%emt 0:00:36]} Ng5 {[%emt 0:00:09]} 40. b6 {[%emt 0:00:53]} Nxf3+ {[%emt 0:01:03]} 41. Kf2 {[%emt 0:01:40]} Ne5 {[%emt 0:01:01]} 42. b7 {[%emt 0:01:06]} Nc6 {[%emt 0:00:29]} 43. b8=Q {[%emt 0:00:24]} Nxb8 {[%emt 0:00:01]} 44. Bxb8 {[%emt 0:00:07]} h2 {[%emt 0:01:00]} 45. Rh1 {[%emt 0:00:05]} Ra5 {[%emt 0:00:30]} 46. Rxh2 {[%emt 0:01:27]} Rxa4 {[%emt 0:00:17]} 47. Kf3 {[%emt 0:00:09]} Ra3 {[%emt 0:00:43]} 48. Rc2 {[%emt 0:00:06]} Ra1 {[%emt 0:00:27]} 49. Kxf4 {[%emt 0:00:11]} Rd1 {[%emt 0:00:30]} 50. Ke4 {[%emt 0:01:35]} Rd3 {[%emt 0:00:22]} 51. Rf2 {[%emt 0:00:54]} Ke6 {[%emt 0:00:14]} 52. Rf3 {[%emt 0:03:48]} Rd1 {[%emt 0:00:06]} 53. Kf4 {[%emt 0:03:28]} f6 {[%emt 0:01:19]} 54. Re3+ {[%emt 0:00:08]} Kd7 {[%emt 0:00:08]} 55. Re4 {[%emt 0:00:33]} Rf1+ {[%emt 0:00:33]} 56. Ke3 {[%emt 0:00:40]} Rh1 {[%emt 0:00:51]} 57. Kd4 {[%emt 0:00:24]} f5 {[%emt 0:00:23]} 58. Rf4 {[%emt 0:00:31]} Ra1 {[%emt 0:00:09]} 59. Rxf5 {[%emt 0:00:26]} Ra4 {[%emt 0:00:51]} 60. Rc5 {[%emt 0:00:33]} Ra8 {[%emt 0:00:12]} 61. Bc7 {[%emt 0:00:31]} Rh8 {[%emt 0:00:05]} 62. Kxc4 {[%emt 0:00:12]} Rh1 {[%emt 0:00:22]} 63. Re5 {[%emt 0:00:43]} Kc6 {[%emt 0:00:02]} 64. Rd5 {[%emt 0:02:23]} Rh4+ {[%emt 0:00:25]} 65. Rd4 {[%emt 0:00:11]} Rh8 {[%emt 0:00:03]} 66. d7 {[%emt 0:02:07]} Kxc7 {[%emt 0:00:02]} 67. d8=Q+ {[%emt 0:00:08]} Rxd8 {[%emt 0:00:07]} 68. Rxd8 {[%emt 0:00:05]} Kxd8 {[%emt 0:00:01]} 69. Kb5 {[%emt 0:00:07]} Kc7 {[%emt 0:00:07]} 70. Kc5 {[%emt 0:00:06]} Kb7 {[%emt 0:00:24]} 71. Kd6 {[%emt 0:00:07]} Kc8 {[%emt 0:00:08]} 72. c4 {[%emt 0:00:13]} Kb7 {[%emt 0:00:12]} 73. c5 {[%emt 0:00:15]} Kc8 {[%emt 0:00:18]} 74. Kc6 {[%emt 0:00:04]} 1-0

[Event "14. Deizisauer Herbstopen 2019"]
[Site "Deizisau"]
[Date "2019.10.27"]
[Round "5.6"]
[White "Lehmann, Stefan"]
[Black "Doering, Stefan"]
[Result "1/2-1/2"]
[ECO "B47"]
[WhiteElo "1999"]
[BlackElo "2025"]
[Annotator "NA"]
[PlyCount "74"]
[EventDate "2019.10.25"]
[EventType "swiss"]
[EventCountry "GER"]
[SourceTitle "playchess.com"]
[Source "ChessBase"]
[SourceQuality "1"]
[TimeControl "5400+30"]

1. e4 {[%emt 0:00:00]} c5 {[%emt 0:00:00]} 2. Nc3 {[%emt 0:00:00]} Nc6 {[%emt 0:00:00]} 3. Nf3 {[%emt 0:00:00]} e6 {[%emt 0:00:27]} 4. d4 {[%emt 0:00:00]} cxd4 {[%emt 0:00:08]} 5. Nxd4 {[%emt 0:00:04]} Qc7 {[%emt 0:00:09]} 6. Qd3 {[%emt 0:00:09]} a6 {[%emt 0:08:44]} 7. Nxc6 {[%emt 0:00:09]} bxc6 {[%emt 0:00:11]} 8. Qg3 {[%emt 0:00:11]} d6 {[%emt 0:01:09]} 9. Bc4 {[%emt 0:05:22]} Nf6 {[%emt 0:01:49]} 10. Be3 {[%emt 0:01:04]} Qb7 {[%emt 0:01:58]} 11. Bb3 {[%emt 0:01:35]} Be7 {[%emt 0:05:35]} 12. O-O {[%emt 0:02:15]} O-O {[%emt 0:06:53]} 13. Rad1 {[%emt 0:11:28]} c5 {[%emt 0:05:14]} 14. Bh6 {[%emt 0:04:29]} Ne8 {[%emt 0:00:06]} 15. Bf4 {[%emt 0:02:23]} Bd7 {[%emt 0:01:41]} 16. Rfe1 {[%emt 0:02:16]} Rc8 {[%emt 0:02:25]} 17. Ba4 {[%emt 0:02:54]} Bxa4 {[%emt 0:00:59]} 18. Nxa4 {[%emt 0:00:10]} Qb4 {[%emt 0:01:51]} 19. Qb3 {[%emt 0:03:02]} Qa5 {[%emt 0:03:32]} 20. c4 {[%emt 0:05:33]} Bf6 {[%emt 0:03:37]} 21. e5 {[%emt 0:09:13]} dxe5 {[%emt 0:00:21]} 22. Bxe5 {[%emt 0:00:41]} Bxe5 {[%emt 0:00:01]} 23. Rxe5 {[%emt 0:00:09]} Nf6 {[%emt 0:00:03]} 24. Nc3 {[%emt 0:02:41]} Rfd8 {[%emt 0:02:57]} 25. Ree1 {[%emt 0:01:31]} Rd4 {[%emt 0:01:25]} 26. Ne2 {[%emt 0:01:19]} Rd2 {[%emt 0:01:14]} 27. Nc3 {[%emt 0:05:29]} Rd4 {[%emt 0:01:24]} 28. Ne2 {[%emt 0:00:19]} Rd2 {[%emt 0:02:50]} 29. Nc3 {[%emt 0:00:09]} Rcd8 {[%emt 0:00:04]} 30. Rxd2 {[%emt 0:00:32]} Rxd2 {[%emt 0:00:01]} 31. Rd1 {[%emt 0:00:12]} Rxd1+ {[%emt 0:00:45]} 32. Qxd1 {[%emt 0:00:12]} h6 {[%emt 0:00:01]} 33. f3 {[%emt 0:02:04]} Qb6 {[%emt 0:03:34]} 34. b3 {[%emt 0:00:37]} Qc7 {[%emt 0:01:58]} 35. Qd2 {[%emt 0:01:09]} Qe5 {[%emt 0:00:41]} 36. g3 {[%emt 0:01:28]} Qf5 {[%emt 0:01:29]} 37. Kg2 {[%emt 0:00:33]} Kh7 {[%emt 0:00:38]} 1/2-1/2

[Event "14. Deizisauer Herbstopen 2019"]
[Site "Deizisau"]
[Date "2019.10.27"]
[Round "5.7"]
[White "Marquardt, Alexander"]
[Black "Engbrecht, Helmut"]
[Result "1/2-1/2"]
[ECO "A10"]
[WhiteElo "2125"]
[BlackElo "1978"]
[Annotator "NA"]
[PlyCount "48"]
[EventDate "2019.10.25"]
[EventType "swiss"]
[EventCountry "GER"]
[SourceTitle "playchess.com"]
[Source "ChessBase"]
[SourceQuality "1"]
[TimeControl "5400+30"]

1. c4 {[%emt 0:00:00]} Nc6 {[%emt 0:00:00]} 2. g3 {[%emt 0:00:18]} d5 {[%emt 0:00:21]} 3. cxd5 {[%emt 0:00:11]} Qxd5 {[%emt 0:00:06]} 4. Nf3 {[%emt 0:00:13]} Bg4 {[%emt 0:01:05]} 5. Bg2 {[%emt 0:00:08]} e5 {[%emt 0:00:50]} 6. Nc3 {[%emt 0:00:33]} Qd7 {[%emt 0:00:33]} 7. h3 {[%emt 0:01:39]} Bh5 {[%emt 0:00:24]} 8. g4 {[%emt 0:09:00]} Bg6 {[%emt 0:00:16]} 9. Nh4 {[%emt 0:00:09]} Be7 {[%emt 0:07:06]} 10. Nxg6 {[%emt 0:00:36]} hxg6 {[%emt 0:00:25]} 11. d3 {[%emt 0:00:15]} f5 {[%emt 0:05:08]} 12. g5 {[%emt 0:00:50]} Bc5 {[%emt 0:07:19]} 13. a3 {[%emt 0:11:47]} Nge7 {[%emt 0:01:55]} 14. Bd2 {[%emt 0:11:02]} Bb6 {[%emt 0:01:40]} 15. Qa4 {[%emt 0:04:34]} Qd4 {[%emt 0:14:02]} 16. O-O {[%emt 0:10:16]} O-O-O {[%emt 0:06:24]} 17. Rad1 {[%emt 0:02:39]} Qxa4 {[%emt 0:01:04]} 18. Nxa4 {[%emt 0:00:12]} Nd4 {[%emt 0:00:40]} 19. Nxb6+ {[%emt 0:06:10]} axb6 {[%emt 0:00:26]} 20. Rfe1 {[%emt 0:02:06]} Nc2 {[%emt 0:09:22]} 21. Rf1 {[%emt 0:00:28]} Nd4 {[%emt 0:00:08]} 22. Rfe1 {[%emt 0:00:37]} Nc2 {[%emt 0:00:12]} 23. Rf1 {[%emt 0:00:21]} Nd4 {[%emt 0:00:08]} 24. Rfe1 {[%emt 0:02:03]} Nc2 {[%emt 0:00:12]} 1/2-1/2

[Event "14. Deizisauer Herbstopen 2019"]
[Site "Deizisau"]
[Date "2019.10.27"]
[Round "5.8"]
[White "Mock, Oskar"]
[Black "Gheng, Dominik"]
[Result "0-1"]
[ECO "A05"]
[WhiteElo "1983"]
[BlackElo "2068"]
[Annotator "NA"]
[PlyCount "56"]
[EventDate "2019.10.25"]
[EventType "swiss"]
[EventCountry "GER"]
[SourceTitle "playchess.com"]
[Source "ChessBase"]
[SourceQuality "1"]
[TimeControl "5400+30"]

1. Nf3 {[%emt 0:00:07]} Nf6 {[%emt 0:00:00]} 2. c4 {[%emt 0:00:43]} e6 {[%emt 0:00:00]} 3. g3 {[%emt 0:00:05]} d5 {[%emt 0:00:00]} 4. Bg2 {[%emt 0:00:24]} Be7 {[%emt 0:00:12]} 5. b3 {[%emt 0:01:02]} O-O {[%emt 0:00:25]} 6. Bb2 {[%emt 0:00:05]} c5 {[%emt 0:00:41]} 7. cxd5 {[%emt 0:00:46]} exd5 {[%emt 0:00:32]} 8. O-O {[%emt 0:00:09]} b6 {[%emt 0:01:13]} 9. d4 {[%emt 0:00:25]} Bb7 {[%emt 0:00:15]} 10. dxc5 {[%emt 0:04:39]} bxc5 {[%emt 0:00:33]} 11. Ne5 {[%emt 0:00:17]} Nbd7 {[%emt 0:03:32]} 12. Nd2 {[%emt 0:00:38]} Nxe5 {[%emt 0:03:54]} 13. Bxe5 {[%emt 0:00:09]} Nd7 {[%emt 0:00:11]} 14. Bb2 {[%emt 0:02:08]} Bf6 {[%emt 0:00:52]} 15. Qc2 {[%emt 0:00:25]} Qb6 {[%emt 0:04:11]} 16. e4 {[%emt 0:01:11]} Bxb2 {[%emt 0:04:14]} 17. Qxb2 {[%emt 0:00:02]} Ba6 {[%emt 0:00:06]} 18. Rfe1 {[%emt 0:04:42]} d4 {[%emt 0:00:34]} 19. e5 {[%emt 0:00:09]} Rae8 {[%emt 0:00:37]} 20. Nf3 {[%emt 0:01:09]} Bb7 {[%emt 0:04:34]} 21. e6 {[%emt 0:10:02]} Rxe6 {[%emt 0:02:59]} 22. Ng5 {[%emt 0:00:11]} Rxe1+ {[%emt 0:00:56]} 23. Rxe1 {[%emt 0:00:01]} Bxg2 {[%emt 0:00:24]} 24. Kxg2 {[%emt 0:00:26]} h6 {[%emt 0:00:27]} 25. Ne4 {[%emt 0:00:53]} Re8 {[%emt 0:01:11]} 26. Qd2 {[%emt 0:01:37]} f5 {[%emt 0:00:30]} 27. Ng5 {[%emt 0:01:15]} Rxe1 28. Qxe1 {[%emt 0:00:30]} hxg5 0-1

[Event "14. Deizisauer Herbstopen 2019"]
[Site "Deizisau"]
[Date "2019.10.27"]
[Round "5.9"]
[White "Reimche, Vadim"]
[Black "Heck, Nils"]
[Result "1-0"]
[ECO "D86"]
[WhiteElo "2080"]
[BlackElo "1999"]
[Annotator "NA"]
[PlyCount "63"]
[EventDate "2019.10.25"]
[EventType "swiss"]
[EventCountry "GER"]
[SourceTitle "playchess.com"]
[Source "ChessBase"]
[SourceQuality "1"]
[TimeControl "5400+30"]

1. d4 {[%emt 0:09:46]} Nf6 {[%emt 0:00:00]} 2. c4 {[%emt 0:00:19]} g6 {[%emt 0:00:00]} 3. Nc3 {[%emt 0:00:03]} d5 {[%emt 0:00:01]} 4. cxd5 {[%emt 0:00:13]} Nxd5 {[%emt 0:00:11]} 5. e4 {[%emt 0:00:02]} Nxc3 {[%emt 0:00:11]} 6. bxc3 {[%emt 0:00:03]} Bg7 {[%emt 0:00:09]} 7. Bc4 {[%emt 0:00:04]} c5 {[%emt 0:00:09]} 8. Ne2 {[%emt 0:01:03]} Nc6 {[%emt 0:00:08]} 9. Be3 {[%emt 0:00:07]} O-O {[%emt 0:00:15]} 10. O-O {[%emt 0:00:03]} Bg4 {[%emt 0:00:09]} 11. f3 {[%emt 0:00:06]} Bd7 {[%emt 0:00:07]} 12. Rc1 {[%emt 0:00:38]} Qc7 {[%emt 0:02:37]} 13. Qd2 {[%emt 0:03:39]} Rad8 {[%emt 0:03:03]} 14. Rfd1 {[%emt 0:00:18]} Na5 {[%emt 0:04:00]} 15. Bd3 {[%emt 0:00:15]} Ba4 {[%emt 0:02:27]} 16. Re1 {[%emt 0:01:38]} b6 {[%emt 0:11:57]} 17. Qb2 {[%emt 0:01:13]} Qd7 {[%emt 0:03:21]} 18. Rb1 {[%emt 0:06:12]} e5 {[%emt 0:14:24]} 19. d5 {[%emt 0:00:49]} f5 {[%emt 0:02:55]} 20. c4 {[%emt 0:05:06]} Qe7 {[%emt 0:04:45]} 21. Bd2 {[%emt 0:01:50]} fxe4 {[%emt 0:07:31]} 22. fxe4 {[%emt 0:00:08]} Bd7 {[%emt 0:08:57]} 23. Qa3 {[%emt 0:01:36]} Qh4 {[%emt 0:05:46]} 24. Qc1 {[%emt 0:08:26]} Bh3 {[%emt 0:07:59]} 25. Ng3 {[%emt 0:02:20]} Bxg2 {[%emt 0:04:34]} 26. Bg5 {[%emt 0:04:04]} Qh3 {[%emt 0:02:09]} 27. Bxd8 {[%emt 0:05:32]} Rxd8 {[%emt 0:02:12]} 28. Rb2 {[%emt 0:16:57]} Bf3 {[%emt 0:01:09]} 29. Rf2 {[%emt 0:02:43]} Bg4 {[%emt 0:03:14]} 30. Qg5 Bf3 31. Qc1 Bh6 32. Qc3 1-0